bitfinex-derivatives/quotes_BTCF0:USTF0_20251125
["timestamp","ask_amount","ask_price","bid_price","bid_amount"]
[1764058082412,0.68355218,87500.0,87499.0,0.00017141]
[1764058082613,0.2052842,87487.0,87486.0,0.09476]
[1764058082813,0.19385,87475.0,87474.0,0.24468]
[1764058083010,0.81481,87475.0,87474.0,0.24687803]
[1764058087714,0.71684,87475.0,87474.0,0.24687803]
[1764058088105,0.81481,87475.0,87474.0,0.24687803]
[1764058089016,0.83922752,87475.0,87474.0,0.24687803]
[1764058089414,0.64349822,87475.0,87474.0,0.24687803]
[1764058089602,0.68662822,87475.0,87474.0,0.24687803]
[1764058092223,0.1094566,87469.0,87468.0,0.19137617]
[1764058092415,0.5294566,87469.0,87468.0,0.19137617]
[1764058092612,0.55385345,87469.0,87468.0,0.19137617]
[1764058093218,0.12241685,87469.0,87468.0,0.1935742]
[1764058093407,0.43902,87469.0,87468.0,0.1945742]
[1764058093611,0.16,87469.0,87468.0,0.1945742]
[1764058093815,0.341,87469.0,87468.0,0.1935742]
[1764058096019,0.18888017,87480.0,87479.0,0.25214]
[1764058096321,0.72981679,87480.0,87479.0,0.25433803]
[1764058097814,0.81425679,87480.0,87479.0,0.25433803]
[1764058099522,0.63325679,87480.0,87479.0,0.25433803]
[1764058099713,0.81425679,87480.0,87479.0,0.25433803]
[1764058099913,0.63325679,87480.0,87479.0,0.25433803]
[1764058100216,0.81425679,87480.0,87479.0,0.25433803]
[1764058100714,0.81425679,87480.0,87479.0,0.00219803]
[1764058100921,0.109456,87473.0,87472.0,0.25214]
[1764058101113,0.730456,87473.0,87472.0,0.25214]
[1764058101309,0.75483476,87473.0,87472.0,0.25214]
[1764058102920,0.74339876,87473.0,87472.0,0.25214]
[1764058103225,0.74339876,87473.0,87472.0,0.25433803]
[1764058104720,0.67001,87473.0,87472.0,0.25433803]
[1764058105019,0.74340607,87473.0,87472.0,0.25433803]
[1764058106617,0.56240607,87473.0,87472.0,0.25433803]
[1764058106930,0.74340607,87473.0,87472.0,0.25433803]
[1764058112822,0.69439607,87473.0,87472.0,0.25433803]
[1764058113024,0.40538607,87473.0,87472.0,0.25433803]
[1764058114023,0.53384207,87473.0,87472.0,0.25433803]
[1764058114229,0.70340607,87473.0,87472.0,0.25433803]
[1764058114428,0.47339607,87473.0,87472.0,0.25433803]
[1764058114628,0.42438607,87473.0,87472.0,0.25433803]
[1764058114820,0.02438607,87473.0,87472.0,0.25433803]
[1764058115023,0.01878,87474.0,87473.0,0.19127]
[1764058115219,0.01878,87474.0,87473.0,0.19346803]
[1764058115420,0.11462,87474.0,87473.0,0.19346803]
[1764058115820,0.55462,87474.0,87473.0,0.19346803]
[1764058116622,0.05878,87474.0,87473.0,0.19346803]
[1764058117021,0.04,87474.0,87473.0,0.19346803]
[1764058125637,0.1072758,87475.0,87474.0,0.19115]
[1764058125839,0.3172758,87475.0,87474.0,0.19334803]
[1764058126443,0.4095058,87475.0,87474.0,0.19334803]
[1764058126840,0.3172758,87475.0,87474.0,0.19334803]
[1764058127143,0.34166337,87475.0,87474.0,0.19334803]
[1764058127438,0.09387141,87483.0,87482.0,0.19407]
[1764058127738,0.18610141,87483.0,87482.0,0.19626803]
[1764058127938,0.62610141,87483.0,87482.0,0.19626803]
[1764058128346,0.29610141,87483.0,87482.0,0.19626803]
[1764058129851,0.50610141,87483.0,87482.0,0.19626803]
[1764058131552,0.27610141,87483.0,87482.0,0.19626803]
[1764058132454,0.46610141,87483.0,87482.0,0.19626803]
[1764058132857,0.09387141,87483.0,87482.0,0.19626803]
[1764058133159,0.00017141,87483.0,87482.0,0.19626803]
[1764058133562,0.09387141,87483.0,87482.0,0.19626803]
[1764058135854,0.18610141,87483.0,87482.0,0.19626803]
[1764058139166,0.09387141,87483.0,87482.0,0.19626803]
[1764058139354,0.00017141,87483.0,87482.0,0.19626803]
[1764058139756,0.02444918,87483.0,87482.0,0.19626803]
[1764058140360,0.12063918,87483.0,87482.0,0.19626803]
[1764058140655,0.21989918,87483.0,87482.0,0.19626803]
[1764058141161,0.02444918,87483.0,87482.0,0.19626803]
[1764058141367,0.00017141,87483.0,87482.0,0.19626803]
[1764058143167,0.19562141,87483.0,87482.0,0.19626803]
[1764058143563,0.19562141,87483.0,87482.0,0.00219803]
[1764058143866,0.62562141,87483.0,87482.0,0.00219803]
[1764058144667,0.64988736,87483.0,87482.0,0.00219803]
[1764058145562,0.38988736,87483.0,87482.0,0.00219803]
[1764058145862,0.21988736,87483.0,87482.0,0.19587803]
[1764058146070,0.60988736,87483.0,87482.0,0.19587803]
[1764058146567,0.21988736,87483.0,87482.0,0.19587803]
[1764058146769,0.33988736,87483.0,87482.0,0.19587803]
[1764058147164,0.65988736,87483.0,87482.0,0.10304803]
[1764058147362,0.65988736,87483.0,87482.0,0.00219803]
[1764058148766,0.19545,87471.0,87470.0,0.29038132]
[1764058148972,0.19545,87471.0,87470.0,0.19587803]
[1764058149363,0.2068857,87476.0,87475.0,0.19368]
[1764058149562,0.2068857,87476.0,87475.0,0.19587803]
[1764058150769,0.6568857,87476.0,87475.0,0.00219803]
[1764058151762,0.6568857,87476.0,87475.0,0.10304803]
[1764058152472,0.40116846,87476.0,87475.0,0.10304803]
[1764058154073,0.20462894,87476.0,87475.0,0.10304803]
[1764058154273,0.29935894,87476.0,87475.0,0.20460803]
[1764058154472,0.31079464,87476.0,87475.0,0.20460803]
[1764058154675,0.29935894,87476.0,87475.0,0.20460803]
[1764058154873,0.12935894,87476.0,87475.0,0.20460803]
[1764058159377,0.02428276,87476.0,87475.0,0.20460803]
[1764058159573,0.00017141,87483.0,87475.0,0.20460803]
[1764058159574,0.00017141,87483.0,87482.0,0.09794]
[1764058159784,0.02446072,87483.0,87482.0,0.20014803]
[1764058160481,0.00017141,87483.0,87482.0,0.20014803]
[1764058160980,0.0896,87514.0,87504.0,0.05184]
[1764058161175,0.0114318,87506.0,87505.0,0.19795]
[1764058161475,0.2914678,87506.0,87505.0,0.20014803]
[1764058161675,0.22448327,87506.0,87505.0,0.20014803]
[1764058163681,0.31414094,87506.0,87505.0,0.20014803]
[1764058163984,0.73414094,87506.0,87505.0,0.20014803]
[1764058164686,0.64448327,87506.0,87505.0,0.20014803]
[1764058165386,0.21305147,87506.0,87505.0,0.20014803]
[1764058166378,0.18876,87506.0,87505.0,0.20014803]
[1764058166880,0.27900295,87506.0,87505.0,0.20014803]
[1764058168380,0.18893141,87514.0,87513.0,0.19795]
[1764058168584,0.18893141,87514.0,87513.0,0.20014803]
[1764058170382,0.00017141,87514.0,87513.0,0.20014803]
[1764058172780,0.01160211,87514.0,87513.0,0.20014803]
[1764058175371,0.10530211,87514.0,87513.0,0.20014803]
[1764058176983,0.20036211,87514.0,87513.0,0.20014803]
[1764058177774,0.00017141,87514.0,87513.0,0.20014803]
[1764058184391,0.0114294,87524.0,87523.0,0.18908]
[1764058184688,0.00759472,87526.0,87525.0,0.24028]
[1764058184989,0.00759472,87526.0,87525.0,0.24247803]
[1764058186792,0.00017141,87534.0,87533.0,0.18908]
[1764058187085,0.00017141,87534.0,87533.0,0.19127803]
[1764058187577,0.34912793,87534.0,87533.0,0.00219803]
[1764058187782,0.66555951,87534.0,87533.0,0.00219803]
[1764058188181,0.27968427,87534.0,87533.0,0.00219803]
[1764058188388,0.20309951,87534.0,87533.0,0.19127803]
[1764058188592,0.29345971,87534.0,87533.0,0.19127803]
[1764058188793,0.09053161,87534.0,87533.0,0.19127803]
[1764058189187,0.00017141,87534.0,87533.0,0.19127803]
[1764058190883,0.09753141,87534.0,87533.0,0.19127803]
[1764058191085,0.19167141,87534.0,87533.0,0.19127803]
[1764058193491,0.0114277,87537.0,87533.0,0.19127803]
[1764058193492,0.0114277,87537.0,87536.0,0.18908]
[1764058193793,0.2029273,87541.0,87540.0,0.24028]
[1764058193983,0.22707051,87541.0,87540.0,0.24028]
[1764058194186,0.31694839,87541.0,87540.0,0.24247803]
[1764058194386,0.22280839,87541.0,87540.0,0.24247803]
[1764058194583,0.31694839,87541.0,87540.0,0.24247803]
[1764058194789,0.68694839,87541.0,87540.0,0.24247803]
[1764058196897,0.68694839,87541.0,87540.0,0.00219803]
[1764058197896,0.68694839,87541.0,87532.0,0.00017141]
[1764058197897,0.1963982,87533.0,87532.0,0.09687141]
[1764058198095,0.63054141,87533.0,87532.0,0.09906944]
[1764058199196,0.63054141,87533.0,87532.0,0.19348944]
[1764058199394,0.02414321,87533.0,87532.0,0.19348944]
[1764058199589,0.0114273,87540.0,87538.0,0.18663]
[1764058199590,0.17876,87539.0,87538.0,0.18663]
[1764058199793,0.17876,87539.0,87538.0,0.18882803]
[1764058199794,0.63292735,87539.0,87538.0,0.18882803]
[1764058200099,0.30292735,87539.0,87538.0,0.18882803]
[1764058200299,0.20292735,87539.0,87538.0,0.18882803]
[1764058201403,0.57292735,87539.0,87538.0,0.18882803]
[1764058202393,0.27298497,87539.0,87538.0,0.18882803]
[1764058202595,0.20298497,87539.0,87538.0,0.18882803]
[1764058202900,0.02422497,87539.0,87538.0,0.18882803]
[1764058203196,0.17893092,87549.0,87548.0,0.18663]
[1764058203400,0.20315685,87549.0,87548.0,0.18882803]
[1764058203998,0.29325496,87549.0,87548.0,0.18882803]
[1764058204202,0.30468106,87549.0,87548.0,0.18882803]
[1764058204600,0.29325496,87549.0,87548.0,0.18882803]
[1764058207205,0.45325496,87549.0,87548.0,0.18882803]
[1764058207510,0.68325496,87549.0,87548.0,0.18882803]
[1764058207802,0.68325496,87549.0,87548.0,0.09440803]
[1764058208018,0.1901872,87541.0,87540.0,0.18663]
[1764058208210,0.58441313,87541.0,87540.0,0.18882803]
[1764058208402,0.31441313,87541.0,87540.0,0.18882803]
[1764058208803,0.31441313,87541.0,87540.0,0.24404803]
[1764058209296,0.60441313,87541.0,87540.0,0.24404803]
[1764058209503,0.60441313,87541.0,87540.0,0.18882803]
[1764058210406,0.60441313,87541.0,87540.0,0.00219803]
[1764058210707,0.1901882,87533.0,87532.0,0.09238141]
[1764058210905,0.57441413,87533.0,87532.0,0.18899944]
[1764058211102,0.57441413,87533.0,87532.0,0.00236944]
[1764058211706,0.57441413,87533.0,87532.0,0.00017141]
[1764058212506,0.57441413,87533.0,87532.0,0.08844141]
[1764058213813,0.57441413,87533.0,87532.0,0.00017141]
[1764058215912,0.17954,87517.0,87516.0,0.08827]
[1764058216105,0.17954,87517.0,87510.0,0.23425]
[1764058216106,0.1909711,87511.0,87510.0,0.23425]
[1764058216307,0.1909719,87505.0,87504.0,0.23143]
[1764058216902,0.1909719,87505.0,87498.0,0.23143]
[1764058216903,0.1909726,87499.0,87498.0,0.23143]
[1764058217101,0.1909726,87499.0,87498.0,0.17903]
[1764058217102,0.6209726,87499.0,87498.0,0.17903]
[1764058217404,0.6209726,87499.0,87498.0,0.09046803]
[1764058217605,0.4109726,87499.0,87498.0,0.09046803]
[1764058217809,0.50312457,87499.0,87498.0,0.09046803]
[1764058218112,0.50312457,87499.0,87498.0,0.00319803]
[1764058218510,0.4109726,87499.0,87498.0,0.00319803]
[1764058218812,0.42593591,87499.0,87498.0,0.001]
[1764058219014,0.1909742,87487.0,87486.0,0.23143]
[1764058219215,0.17954,87487.0,87486.0,0.23362803]
[1764058219718,0.1909742,87487.0,87486.0,0.23362803]
[1764058221820,0.17971141,87495.0,87494.0,0.17903]
[1764058222015,0.00017141,87495.0,87494.0,0.18122803]
[1764058224423,0.17954,87505.0,87504.0,0.17903]
[1764058224622,0.17954,87505.0,87504.0,0.18122803]
[1764058225319,0.1909719,87505.0,87504.0,0.18122803]
[1764058225820,0.1919719,87505.0,87504.0,0.18122803]
[1764058227621,0.5719719,87505.0,87504.0,0.00219803]
[1764058228020,0.1909729,87497.0,87496.0,0.08844141]
[1764058228213,0.22317093,87497.0,87496.0,0.17920141]
[1764058228418,0.55317093,87497.0,87496.0,0.17993407]
[1764058228823,0.22317093,87497.0,87496.0,0.17993407]
[1764058229023,0.18173803,87497.0,87496.0,0.17993407]
[1764058229224,0.09032803,87497.0,87496.0,0.17993407]
[1764058229821,0.18173803,87497.0,87496.0,0.17993407]
[1764058230119,0.33173803,87497.0,87496.0,0.17993407]
[1764058230320,0.18173803,87497.0,87496.0,0.17993407]
[1764058231528,0.56173803,87497.0,87496.0,0.00090407]
[1764058232326,0.56173803,87497.0,87496.0,0.00017141]
[1764058234529,0.56173803,87497.0,87496.0,0.08844141]
[1764058234825,0.56173803,87497.0,87496.0,0.17993407]
[1764058235132,0.35173803,87497.0,87496.0,0.17993407]
[1764058235830,0.55173803,87497.0,87496.0,0.17993407]
[1764058236226,0.57593677,87497.0,87496.0,0.17993407]
[1764058236624,0.55173803,87497.0,87496.0,0.17993407]
[1764058236931,0.55173803,87497.0,87496.0,0.00090407]
[1764058238130,0.57595234,87497.0,87496.0,0.00090407]
[1764058238531,0.27595234,87497.0,87496.0,0.17993407]
[1764058239934,0.54595234,87497.0,87496.0,0.17993407]
[1764058242528,0.72667234,87497.0,87496.0,0.17993407]
[1764058242729,0.72667234,87497.0,87496.0,0.00090407]
[1764058243236,0.72667234,87497.0,87496.0,0.08754407]
[1764058243733,0.72667234,87497.0,87496.0,0.00090407]
[1764058244039,0.72667234,87497.0,87496.0,0.00017141]
[1764058246036,0.72667234,87497.0,87496.0,0.08681141]
[1764058247345,0.72667234,87497.0,87496.0,0.08754407]
[1764058248047,0.72667234,87497.0,87496.0,0.17510407]
[1764058248341,0.54595234,87497.0,87496.0,0.17510407]
[1764058248545,0.72667234,87497.0,87496.0,0.17510407]
[1764058252040,0.02641234,87497.0,87496.0,0.17510407]
[1764058252346,0.20713234,87497.0,87496.0,0.17510407]
[1764058253340,0.02421431,87497.0,87496.0,0.17510407]
[1764058254347,0.0114328,87498.0,87497.0,0.1742]
[1764058254547,0.03573606,87498.0,87497.0,0.17493266]
[1764058255440,0.0114328,87498.0,87497.0,0.17493266]
[1764058255840,0.06472,87503.0,87500.0,0.1742]
[1764058255841,0.1757325,87501.0,87500.0,0.1742]
[1764058256038,0.20223519,87501.0,87500.0,0.17493266]
[1764058256239,0.65223519,87501.0,87500.0,0.17493266]
[1764058256745,0.20223519,87501.0,87500.0,0.17493266]
[1764058257341,0.20223519,87501.0,87500.0,0.17060266]
[1764058257640,0.62223519,87501.0,87500.0,0.17060266]
[1764058257847,0.27323519,87501.0,87500.0,0.17060266]
[1764058258547,0.02750269,87501.0,87500.0,0.17060266]
[1764058258740,0.09678269,87501.0,87500.0,0.17060266]
[1764058259251,0.02530466,87501.0,87500.0,0.17060266]
[1764058260344,0.02430466,87501.0,87500.0,0.17060266]
[1764058261144,0.0114322,87503.0,87502.0,0.16141]
[1764058261344,0.0114322,87503.0,87502.0,0.16214266]
[1764058261545,0.03573688,87503.0,87502.0,0.16214266]
[1764058263342,0.03673688,87503.0,87502.0,0.16214266]
[1764058263743,0.001,87503.0,87502.0,0.16214266]
[1764058264348,0.0114318,87506.0,87505.0,0.16141]
[1764058264550,0.0114317,87507.0,87505.0,0.00073266]
[1764058264740,0.0114317,87507.0,87506.0,0.16141]
[1764058265045,0.0114317,87507.0,87506.0,0.16214266]
[1764058267154,0.06928,87513.0,87512.0,0.16141]
[1764058267356,0.10498228,87513.0,87512.0,0.16214266]
[1764058268257,0.03570228,87513.0,87512.0,0.16214266]
[1764058268653,0.02427148,87513.0,87512.0,0.16214266]
[1764058268855,0.02190168,87513.0,87512.0,0.16214266]
[1764058269157,0.0114302,87519.0,87518.0,0.16141]
[1764058269353,0.0114302,87519.0,87518.0,0.16214266]
[1764058269755,0.15218823,87519.0,87518.0,0.16214266]
[1764058270352,0.59218823,87519.0,87518.0,0.00073266]
[1764058270750,0.1499911,87511.0,87510.0,0.21088]
[1764058270952,0.56218913,87511.0,87510.0,0.16214266]
[1764058271151,0.56218913,87511.0,87510.0,0.00073266]
[1764058271754,0.41219803,87511.0,87510.0,0.20853266]
[1764058271953,0.00219803,87511.0,87510.0,0.20853266]
[1764058272152,0.07815092,87521.0,87520.0,0.15622]
[1764058272352,0.36832895,87521.0,87520.0,0.15695266]
[1764058272757,0.58402183,87521.0,87520.0,0.15695266]
[1764058272959,0.56832895,87521.0,87520.0,0.15695266]
[1764058274162,0.58432415,87521.0,87520.0,0.15695266]
[1764058274755,0.58432415,87521.0,87520.0,0.00073266]
[1764058274956,0.1673911,87511.0,87510.0,0.2078]
[1764058275150,0.61958913,87511.0,87510.0,0.20853266]
[1764058275363,0.61958913,87511.0,87510.0,0.00073266]
[1764058276062,0.61958913,87511.0,87510.0,0.07910266]
[1764058276258,0.61958913,87511.0,87510.0,0.15695266]
[1764058276562,0.61958913,87511.0,87510.0,0.00073266]
[1764058276860,0.61958913,87511.0,87510.0,0.15695266]
[1764058277055,0.61958913,87511.0,87510.0,0.00073266]
[1764058278362,0.61958913,87511.0,87510.0,0.15695266]
[1764058280858,0.63275112,87511.0,87510.0,0.15695266]
[1764058281065,0.26275112,87511.0,87510.0,0.20853266]
[1764058281763,0.60275112,87511.0,87510.0,0.20853266]
[1764058284066,0.02679112,87511.0,87510.0,0.20853266]
[1764058285256,0.02459309,87511.0,87510.0,0.20853266]
[1764058285862,0.08941,87520.0,87519.0,0.15622]
[1764058286061,0.19420612,87520.0,87519.0,0.15695266]
[1764058286860,0.03824612,87520.0,87519.0,0.15695266]
[1764058287062,0.02461809,87520.0,87519.0,0.15695266]
[1764058287268,0.0114288,87529.0,87528.0,0.2078]
[1764058287457,0.0114288,87529.0,87528.0,0.20853266]
[1764058287657,0.0114284,87532.0,87531.0,0.15622]
[1764058287960,0.17757643,87532.0,87531.0,0.15695266]
[1764058290464,0.54757643,87532.0,87531.0,0.15695266]
[1764058290765,0.54757643,87532.0,87531.0,0.00073266]
[1764058292162,0.54757643,87532.0,87531.0,0.15695266]
[1764058295564,0.1753794,87524.0,87523.0,0.00017141]
[1764058295867,0.59757743,87524.0,87523.0,0.00017141]
[1764058296459,0.73757743,87524.0,87523.0,0.00017141]
[1764058296769,0.73757743,87524.0,87507.0,0.05158]
[1764058296770,0.1753815,87508.0,87507.0,0.2078]
[1764058296975,0.62757953,87508.0,87507.0,0.2078]
[1764058299165,0.20757953,87508.0,87507.0,0.2078]
[1764058299565,0.46757953,87508.0,87507.0,0.2078]
[1764058303268,0.55674166,87508.0,87507.0,0.2078]
[1764058305477,0.58114507,87508.0,87507.0,0.2078]
[1764058306270,0.58115453,87508.0,87507.0,0.2078]
[1764058307177,0.58115453,87508.0,87507.0,0.07837]
[1764058307475,0.15946,87500.0,87499.0,0.03850141]
[1764058307688,0.58606888,87500.0,87499.0,0.03850141]
[1764058307982,0.58606888,87500.0,87499.0,0.00017141]
[1764058308180,0.58606888,87500.0,87474.0,0.04701]
[1764058308181,0.15946,87481.0,87480.0,0.21]
[1764058308481,0.56165803,87481.0,87480.0,0.21]
[1764058308683,0.56165803,87481.0,87480.0,0.16299]
[1764058308882,0.1708958,87475.0,87474.0,0.21]
[1764058309074,0.56309383,87475.0,87474.0,0.16299]
[1764058310371,0.17309383,87475.0,87474.0,0.16299]
[1764058310586,0.22309383,87475.0,87474.0,0.16299]
[1764058310882,0.49309383,87475.0,87474.0,0.16299]
[1764058314496,0.32073792,87475.0,87474.0,0.16445011]
[1764058314996,0.33217372,87475.0,87474.0,0.16445011]
[1764058316498,0.00073792,87475.0,87474.0,0.16445011]
[1764058321899,0.01135736,87482.0,87481.0,0.15462]
[1764058322108,0.44352493,87482.0,87481.0,0.15681803]
[1764058322309,0.43216757,87482.0,87481.0,0.15681803]
[1764058322604,0.54054864,87482.0,87481.0,0.15681803]
[1764058322996,0.54154864,87482.0,87481.0,0.15681803]
[1764058323591,0.53011374,87482.0,87481.0,0.15681803]
[1764058324503,0.23011374,87482.0,87481.0,0.15681803]
[1764058325305,0.25472689,87482.0,87481.0,0.15681803]
[1764058325506,0.23011374,87482.0,87481.0,0.15681803]
[1764058327400,0.25473724,87482.0,87481.0,0.15681803]
[1764058328398,0.25473959,87482.0,87481.0,0.15681803]
[1764058329099,0.23011374,87482.0,87481.0,0.15681803]
[1764058329308,0.0929057,87482.0,87481.0,0.15681803]
[1764058331311,0.19131029,87491.0,87490.0,0.1924]
[1764058331503,0.51378011,87491.0,87490.0,0.19459803]
[1764058332112,0.52521381,87491.0,87490.0,0.19459803]
[1764058332611,0.61836184,87491.0,87490.0,0.19459803]
[1764058333311,0.13500814,87491.0,87490.0,0.19459803]
[1764058333505,0.00017141,87499.0,87498.0,0.14678]
[1764058333506,0.01160401,87499.0,87498.0,0.14678]
[1764058333704,0.48626429,87499.0,87498.0,0.14897803]
[1764058334314,0.57563652,87499.0,87498.0,0.14897803]
[1764058335013,0.5926399,87499.0,87498.0,0.14897803]
[1764058337802,0.5926399,87499.0,87498.0,0.07544803]
[1764058338008,0.5926399,87499.0,87498.0,0.00219803]
[1764058339018,0.011433,87496.0,87490.0,0.04579141]
[1764058339218,0.02466028,87495.0,87490.0,0.04579141]
[1764058339414,0.0114337,87491.0,87490.0,0.04579141]
[1764058339619,0.4214337,87491.0,87490.0,0.04579141]
[1764058339911,0.44609398,87491.0,87490.0,0.04579141]
[1764058341421,0.44609398,87491.0,87490.0,0.11904141]
[1764058342927,0.44609398,87491.0,87490.0,0.19257141]
[1764058345718,0.44609398,87491.0,87490.0,0.19476944]
[1764058347621,0.011435,87481.0,87480.0,0.19525]
[1764058347821,0.44829331,87481.0,87480.0,0.19525]
[1764058348519,0.28893331,87481.0,87480.0,0.19598267]
[1764058348719,0.09685831,87481.0,87480.0,0.19598267]
[1764058348921,0.02466028,87481.0,87480.0,0.19598267]
[1764058349321,0.00219803,87481.0,87480.0,7e-08]
[1764058349524,0.00219803,87481.0,87446.0,0.14678]
[1764058349525,0.0114396,87447.0,87446.0,0.14678]
[1764058349823,0.0114366,87469.0,87468.0,0.1924]
[1764058350120,0.29832077,87469.0,87468.0,0.1924]
[1764058350325,0.47900077,87469.0,87468.0,0.1924]
[1764058350822,0.29832077,87469.0,87468.0,0.1924]
[1764058351020,0.47900077,87469.0,87468.0,0.1924]
[1764058352218,0.57030625,87469.0,87468.0,0.1924]
[1764058352919,0.57015254,87469.0,87468.0,0.1924]
[1764058355519,0.38694788,87469.0,87468.0,0.1924]
[1764058355723,0.38768048,87469.0,87468.0,0.19459803]
[1764058355923,0.70725051,87469.0,87468.0,0.19459803]
[1764058356526,0.71868711,87469.0,87468.0,0.19459803]
[1764058358216,0.11667668,87469.0,87468.0,0.19459803]
[1764058358420,0.10358085,87469.0,87468.0,0.19459803]
[1764058360728,0.09214425,87469.0,87468.0,0.19459803]
[1764058361122,1.65e-06,87469.0,87468.0,0.19459803]
[1764058362727,0.09059365,87469.0,87468.0,0.19459803]
[1764058363032,1.65e-06,87469.0,87468.0,0.04781803]
[1764058363423,0.00017153,87477.0,87468.0,0.04781803]
[1764058363622,1.53e-06,87477.0,87476.0,0.15265]
[1764058363922,1.53e-06,87477.0,87476.0,0.15484803]
[1764058364325,0.09676442,87490.0,87489.0,0.15265]
[1764058364529,0.09676442,87490.0,87489.0,0.15484803]
[1764058364530,0.03668059,87490.0,87489.0,0.15484803]
[1764058366133,0.12911629,87490.0,87489.0,0.15484803]
[1764058366331,0.03668059,87490.0,87489.0,0.15484803]
[1764058366532,0.19060059,87490.0,87489.0,0.15484803]
[1764058367622,0.58060059,87490.0,87489.0,0.15484803]
[1764058370736,0.67037541,87490.0,87489.0,0.15484803]
[1764058373124,0.28037541,87490.0,87489.0,0.15484803]
[1764058376846,0.11502161,87490.0,87489.0,0.15484803]
[1764058377339,0.19871161,87490.0,87489.0,0.15484803]
[1764058377938,0.11502161,87490.0,87489.0,0.15484803]
[1764058378642,0.19871161,87490.0,87489.0,0.15484803]
[1764058379141,0.27976161,87490.0,87489.0,0.15484803]
[1764058380736,0.71976161,87490.0,87489.0,0.15484803]
[1764058384148,0.69524742,87490.0,87489.0,0.15484803]
[1764058384332,0.71975447,87490.0,87489.0,0.15484803]
[1764058385147,0.16474,87482.0,87481.0,0.17058153]
[1764058385345,0.5469075,87482.0,87481.0,0.00017153]
[1764058385547,0.0114363,87471.0,87470.0,0.22253]
[1764058385746,0.5669089,87471.0,87470.0,0.22472803]
[1764058386141,0.59141764,87471.0,87470.0,0.22472803]
[1764058387850,0.26141764,87471.0,87470.0,0.22472803]
[1764058391643,0.20141764,87471.0,87470.0,0.22472803]
[1764058391954,0.02524134,87471.0,87470.0,0.22472803]
[1764058392151,0.0007326,87471.0,87470.0,0.22472803]
[1764058392342,0.00017153,87479.0,87478.0,0.16513]
[1764058392645,0.00017153,87479.0,87478.0,0.16732803]
[1764058395043,0.07176413,87479.0,87478.0,0.16732803]
[1764058396555,0.00017153,87479.0,87478.0,0.16732803]
[1764058396742,0.07103153,87479.0,87478.0,0.16732803]
[1764058397147,0.14262413,87479.0,87478.0,0.16732803]
[1764058400349,0.55262413,87479.0,87478.0,0.16732803]
[1764058402055,0.57715583,87479.0,87478.0,0.16732803]
[1764058403145,0.30715583,87479.0,87478.0,0.16732803]
[1764058404359,0.02543583,87479.0,87478.0,0.16732803]
[1764058405660,0.02470323,87479.0,87478.0,0.16732803]
[1764058408153,0.02543583,87479.0,87478.0,0.16732803]
[1764058409165,0.02470323,87479.0,87478.0,0.16732803]
[1764058409359,0.00017153,87479.0,87478.0,0.16732803]
[1764058412267,0.0247158,87479.0,87478.0,0.16732803]
[1764058412966,0.00017153,87479.0,87478.0,0.16732803]
[1764058414763,1.53e-06,87479.0,87478.0,0.16732803]
[1764058414958,0.08977482,87490.0,87489.0,0.16513]
[1764058415260,0.02450603,87490.0,87489.0,0.16732803]
[1764058416862,0.00017153,87498.0,87497.0,0.16513]
[1764058417060,0.00090413,87498.0,87497.0,0.16732803]
[1764058418457,0.09148448,87498.0,87497.0,0.16732803]
[1764058418666,0.00090413,87498.0,87497.0,0.16732803]
[1764058419363,0.09060559,87498.0,87497.0,0.16732803]
[1764058419753,0.0114317,87507.0,87497.0,0.16732803]
[1764058419960,0.1321643,87507.0,87506.0,0.16513]
[1764058420161,0.62612987,87507.0,87506.0,0.16732803]
[1764058420564,0.19612987,87507.0,87506.0,0.16732803]
[1764058420867,0.1782843,87507.0,87506.0,0.16732803]
[1764058421662,0.27191816,87507.0,87506.0,0.16732803]
[1764058425571,0.26048646,87507.0,87506.0,0.16732803]
[1764058425875,0.09436646,87507.0,87506.0,0.16732803]
[1764058426066,0.00017123,87515.0,87514.0,0.15465]
[1764058426266,0.00017123,87515.0,87514.0,0.15684803]
[1764058426669,0.0176116,87517.0,87516.0,0.15465]
[1764058426865,0.166709,87527.0,87526.0,0.15465]
[1764058427175,0.27520249,87527.0,87526.0,0.15684803]
[1764058427568,0.26377349,87527.0,87526.0,0.15684803]
[1764058428276,0.26450609,87527.0,87526.0,0.15684803]
[1764058429676,0.70450609,87527.0,87526.0,0.15684803]
[1764058430368,0.70450609,87527.0,87526.0,0.08087803]
[1764058430570,0.72881879,87527.0,87526.0,0.00219803]
[1764058430971,0.77881879,87527.0,87526.0,0.00219803]
[1764058431171,0.15528,87519.0,87518.0,0.15482143]
[1764058431462,0.1674427,87519.0,87518.0,0.08104946]
[1764058431667,0.5774427,87519.0,87518.0,0.08104946]
[1764058432576,0.5774427,87519.0,87518.0,0.00236946]
[1764058432769,0.5774427,87519.0,87518.0,0.00017143]
[1764058436078,0.5660126,87519.0,87518.0,0.00017143]
[1764058436887,0.14739,87499.0,87498.0,0.19241]
[1764058437075,0.1481226,87499.0,87498.0,0.19460803]
[1764058438377,0.1481226,87499.0,87498.0,0.19560803]
[1764058438979,0.1481226,87499.0,87498.0,0.19460803]
[1764058439283,0.0007326,87499.0,87498.0,0.19460803]
[1764058439686,0.14756143,87507.0,87506.0,0.14629]
[1764058439984,0.14756143,87507.0,87506.0,0.14848803]
[1764058440481,0.14829403,87507.0,87506.0,0.14848803]
[1764058443080,0.54829403,87507.0,87506.0,0.14848803]
[1764058443476,0.57261349,87507.0,87506.0,0.14848803]
[1764058444987,0.57261349,87507.0,87506.0,0.00219803]
[1764058445288,0.57261349,87507.0,87506.0,0.14848803]
[1764058445682,0.57261349,87507.0,87506.0,0.00219803]
[1764058446387,0.14739,87493.0,87492.0,0.19241]
[1764058446581,0.1481226,87493.0,87492.0,0.19460803]
[1764058447984,0.1481226,87493.0,87492.0,0.19560803]
[1764058448184,0.0007326,87493.0,87492.0,0.19560803]
[1764058448581,0.0751,87497.0,87496.0,0.14629]
[1764058448780,0.0751,87497.0,87496.0,0.14848803]
[1764058449481,0.0114329,87498.0,87497.0,0.14629]
[1764058449681,0.24407686,87510.0,87497.0,0.00219803]
[1764058449989,0.48688532,87510.0,87508.0,0.14629]
[1764058450182,0.4214313,87510.0,87509.0,0.14848803]
[1764058451583,0.4214313,87510.0,87509.0,0.07704803]
[1764058452486,0.4214313,87510.0,87509.0,0.14844803]
[1764058460902,0.09668686,87515.0,87509.0,0.14844803]
[1764058461096,0.4614306,87515.0,87514.0,0.14659]
[1764058461400,0.4614306,87515.0,87514.0,0.14878803]
[1764058462000,0.48569351,87515.0,87514.0,0.14878803]
[1764058462998,0.30642982,87515.0,87514.0,0.14878803]
[1764058463700,0.31786042,87515.0,87514.0,0.14878803]
[1764058467202,0.31786042,87515.0,87514.0,0.00219803]
[1764058469594,0.0114311,87511.0,87510.0,0.1292]
[1764058469794,0.48569401,87511.0,87510.0,0.1292]
[1764058469991,0.0114318,87506.0,87505.0,0.04147]
[1764058470295,0.47569471,87506.0,87505.0,0.19025803]
[1764058475300,0.0114331,87496.0,87495.0,0.07519]